fUST/lending_fUST_20260109
["ID","MTS","AMOUNT","RATE_DAILY","PERIOD"]
[401073846,1767905441127,-2000.0,0.00014916,2]
[401073848,1767905441136,-1369.5151472,0.00014916,2]
[401073850,1767905441146,-2000.0,0.00014916,2]
[401073852,1767905441156,-2000.0,0.00014916,2]
[401073853,1767905441165,-2000.0,0.00014916,2]
[401073856,1767905441174,-2000.0,0.00014916,2]
[401073857,1767905441183,-2000.0,0.00014916,2]
[401073859,1767905441192,-100000.0,0.0001499,2]
[401073862,1767905441203,-800.0,0.00015068,2]
[401073863,1767905441213,-1200.0,0.00015316,2]
[401073865,1767905441222,-2000.0,0.00015342,2]
[401073868,1767905441231,-594.37321714,0.00015342,2]
[401073870,1767905441241,-1138.28627856,0.00015342,2]
[401073872,1767905441250,-2000.0,0.00015342,2]
[401073874,1767905441259,-1645.40081224,0.00015342,2]
[401073876,1767905441268,-2000.0,0.00015342,2]
[401073877,1767905441276,-200.34918809,0.00015342,2]
[401073880,1767905441286,-1003.80919542,0.00015342,2]
[401073882,1767905441295,-2000.0,0.00015342,2]
[401073884,1767905441304,-2000.0,0.00015342,2]
[401073886,1767905441313,-2000.0,0.00015342,2]
[401073888,1767905441322,-838.23457806,0.00015342,2]
[401073889,1767905441331,-292.93732994,0.00015342,2]
[401073891,1767905441340,-500.0,0.00015342,2]
[401073893,1767905441348,-2000.0,0.00015342,2]
[401073895,1767905441357,-504.51727604,0.00015342,2]
[401073897,1767905441366,-2134.65901332,0.00015342,2]
[401073899,1767905441375,-1644.01857865,0.00015342,2]
[401073901,1767905441384,-1000.0,0.000154,2]
[401073903,1767905441393,-2002.92123591,0.00015464,2]
[401073905,1767905441402,-2500.0,0.00015464,2]
[401073907,1767905441411,-2500.0,0.00015464,2]
[401073909,1767905441421,-2500.0,0.00015464,2]
[401073911,1767905441430,-1410.05192145,0.00015464,2]
[401073913,1767905441439,-1869.1892099,0.00015464,2]
[401073915,1767905441448,-2500.0,0.00015464,2]
[401073917,1767905441457,-2500.0,0.00015464,2]
[401073919,1767905441466,-2500.0,0.00015464,2]
[401073921,1767905441475,-272.8580354,0.00015637,2]
[401073923,1767905441484,-823.0,0.00015842,2]
[401073925,1767905441493,-1500.0,0.00015864,2]
[401073927,1767905441502,-426.30109629,0.00015869,2]
[401073929,1767905441511,-2500.0,0.0001589,2]
[401073931,1767905441520,-909.51288327,0.0001589,2]
[401073933,1767905441529,-2500.0,0.0001589,2]
[401073935,1767905441540,-2500.0,0.0001589,2]
[401073938,1767905441551,-2500.0,0.0001589,2]
[401073940,1767905441560,-546.66896035,0.0001589,2]
[401073942,1767905441569,-2500.0,0.0001589,2]
[401073944,1767905441579,-3032.8743507,0.00016012,2]
[401073946,1767905441588,-3000.0,0.00016012,2]
[401073948,1767905441597,-3000.0,0.00016012,2]
[401073950,1767905441607,-1396.00511375,0.00016012,2]
[401073952,1767905441617,-3000.0,0.00016012,2]
[401073954,1767905441627,-3000.0,0.00016012,2]
[401073956,1767905441636,-1600.0,0.00016164,2]
[401073958,1767905441646,-1000.0,0.00016393,2]
[401073960,1767905441655,-1800.0,0.00016412,2]
[401073962,1767905441664,-500.0,0.00016438,2]
[401073964,1767905441673,-594.35152189,0.00016438,2]
[401073966,1767905441682,-164.10892372,0.00016438,2]
[401073968,1767905441691,-1526.70356569,0.00016438,2]
[401073969,1767905441700,-2071.48096018,0.00016438,2]
[401073971,1767905441710,-3000.0,0.00016438,2]
[401073974,1767905441719,-3000.0,0.00016438,2]
[401073975,1767905441728,-3000.0,0.00016438,2]
[401073978,1767905441740,-200.0,0.00016473,2]
[401073979,1767905441757,-3500.0,0.0001656,2]
[401073982,1767905441774,-3500.0,0.0001656,2]
[401073984,1767905441785,-2509.97635533,0.0001656,2]
[401073986,1767905441795,-3500.0,0.0001656,2]
[401073988,1767905441804,-5000.0,0.00016632,2]
[401073990,1767905441813,-2100.0,0.0001696,2]
[401073992,1767905441822,-5012.19132447,0.00016973,2]
[401073994,1767905441832,-3500.0,0.00016986,2]
[401073996,1767905441842,-3500.0,0.00016986,2]
[401073998,1767905441851,-3500.0,0.00016986,2]
[401074000,1767905441860,-1998.72100815,0.00017108,2]
[401074002,1767905441870,-4000.0,0.00017108,2]
[401074004,1767905441879,-4000.0,0.00017108,2]
[401074006,1767905441889,-2400.0,0.0001726,2]
[401074008,1767905441898,-1152.0,0.00017391,2]
[401074010,1767905441907,-2400.0,0.00017508,2]
[401074012,1767905441917,-4000.0,0.00017534,2]
[401074014,1767905441927,-4000.0,0.00017534,2]
[401074016,1767905441937,-4000.0,0.00017534,2]
[401074018,1767905441946,-425.17937214,0.00017656,2]
[401074020,1767905441956,-4500.0,0.00017656,2]
[401074022,1767905441966,-479.78804727,0.00017842,2]
[401074024,1767905441976,-482.72330021,0.00017869,2]
[401074026,1767905441987,-4323.22837725,0.00018018,2]
[401074028,1767905441996,-1000.0,0.00018032,2]
[401074030,1767905442005,-244.0,0.00018032,2]
[401074032,1767905442016,-1207.44944301,0.00018056,2]
[401074034,1767905442025,-4500.0,0.00018082,2]
[401074036,1767905442035,-4500.0,0.00018082,2]
[401074038,1767905442044,-4500.0,0.00018082,2]
[401074040,1767905442053,-5000.0,0.00018204,2]
[401074043,1767905442063,-1899.64931956,0.00018356,2]
[401074044,1767905442072,-5000.0,0.0001863,2]
[401074047,1767905442082,-1395.64095761,0.0001863,2]
[401074048,1767905442091,-5000.0,0.0001863,2]
[401074050,1767905442104,-5500.0,0.00018752,2]
[401074052,1767905442114,-250.19474322,0.00018959,3]
[401074054,1767905442123,-1613.0,0.00019092,2]
[401074056,1767905442132,-5500.0,0.00019178,2]
[401074059,1767905442143,-167.21136956,0.00019178,2]
[401074061,1767905442152,-162.94,0.000192,2]
[401074063,1767905442162,-164.0,0.000192,2]
[401074064,1767905442172,-1005.37,0.000192,2]
[401074066,1767905442181,-18863.66,0.000192,2]
[401074069,1767905442190,-167.4,0.000192,2]
[401074070,1767905442200,-1031.92126105,0.000193,2]
[401074073,1767905442210,-6000.0,0.00019726,2]
[401074075,1767905442219,-1000.0,0.00019835,2]
[401074077,1767905442232,-492.0,0.00019835,2]
[401074079,1767905442241,-539.14550413,0.00019869,2]
[401074081,1767905442250,-300.26582625,0.0002,2]
[401074083,1767905442259,-419.6,0.00020093,2]
[401074085,1767905442269,-6500.0,0.00020274,2]
[401074087,1767905442278,-1041.66666667,0.00020466,2]
[401074089,1767905442287,-7000.0,0.00020822,2]
[401074091,1767905442296,-2258.0,0.00020959,2]
[401074093,1767905442306,-200.0,0.00021151,4]
[401074095,1767905442315,-419.6,0.00021286,2]
[401074097,1767905442325,-2505.53140952,0.0002137,2]
[401074099,1767905442334,-5998.60809164,0.00021818,2]
[401074101,1767905442343,-1000.0,0.00021819,10]
[401074103,1767905442352,-791.0,0.00021819,10]
[401074105,1767905442361,-595.56770805,0.00021869,2]
[401074107,1767905442370,-1005.37,0.000219,2]
[401074109,1767905442380,-18863.66,0.000219,2]
[401074110,1767905442388,-151.17138734,0.00021918,2]
[401074112,1767905442398,-5012.19132447,0.00021946,2]
[401074114,1767905442407,-283.68,0.00022,2]
[401074117,1767905442417,-575.66,0.00022,7]
[401074119,1767905442426,-2000.51544348,0.00022413,2]
[401074121,1767905442435,-419.6,0.0002248,2]
[401074123,1767905442444,-2019.0,0.00023009,2]
[401074125,1767905442454,-204.0,0.00023342,9]
[401074126,1767905442463,-2371.56730237,0.00023504,2]
[401074128,1767905442472,-5998.6080916,0.0002352,2]
[401074130,1767905442483,-419.6,0.00023673,2]
[401074133,1767905442492,-2371.56730237,0.00023795,2]
[401074135,1767905442501,-651.98991197,0.00023869,2]
[401074137,1767905442510,-1000.0,0.00024001,10]
[401074138,1767905442520,-1000.0,0.00024001,10]
[401074141,1767905442529,-2371.56730237,0.00024022,2]
[401074143,1767905442538,-2371.56730237,0.00024121,2]
[401074145,1767905442551,-160.18626186,0.00024288,2]
[401074147,1767905442561,-283.68,0.000243,2]
[401074149,1767905442570,-151.0,0.00024322,2]
[401074151,1767905442579,-522.121584,0.00024322,2]
[401074153,1767905442587,-522.121584,0.00024322,2]
[401074155,1767905442596,-522.121584,0.00024322,2]
[401074157,1767905442605,-522.121584,0.00024322,2]
[401074159,1767905442615,-18863.66,0.000246,2]
[401074161,1767905442625,-151.0,0.000246,2]
[401074163,1767905442634,-1222.595979,0.000246,2]
[401074165,1767905442643,-1222.595979,0.000246,2]
[401074167,1767905442652,-1222.595979,0.000246,2]
[401074169,1767905442661,-1222.595979,0.000246,2]
[401074171,1767905442670,-151.0,0.000246,2]
[401074173,1767905442678,-341.324064,0.000246,2]
[401074175,1767905442687,-341.324064,0.000246,2]
[401074177,1767905442696,-341.324064,0.000246,2]
[401074179,1767905442706,-341.324064,0.000246,2]
[401074181,1767905442715,-2371.56730237,0.00024606,2]
[401074183,1767905442724,-151.0,0.00024658,2]
[401074185,1767905442733,-151.0,0.00024658,2]
[401074187,1767905442742,-151.0,0.00024658,2]
[401074189,1767905442751,-151.0,0.00024658,2]
[401074191,1767905442760,-151.0,0.00024658,2]
[401074193,1767905442769,-151.0,0.00024658,2]
[401074195,1767905442778,-151.0,0.00024658,2]
[401074196,1767905442787,-151.0,0.00024658,2]
[401074198,1767905442796,-189.075092,0.00024658,2]
[401074200,1767905442805,-189.075092,0.00024658,2]
[401074216,1767905442916,-189.075092,0.00024658,2]
[401074218,1767905442947,-151.0,0.00024658,2]
[401074220,1767905442956,-189.075092,0.00024658,2]
[401074222,1767905442965,-151.0,0.00024658,2]
[401074224,1767905442975,-151.0,0.00024658,2]
[401074226,1767905442984,-151.0,0.00024658,2]
[401074228,1767905442993,-151.0,0.00024658,2]
[401074230,1767905443003,-151.0,0.00024658,2]
[401074233,1767905443016,-699.163556,0.00024658,2]
[401074235,1767905443025,-153.60505,0.00024658,2]
[401074237,1767905443034,-699.163556,0.00024658,2]
[401074239,1767905443043,-699.163556,0.00024658,2]
[401074241,1767905443052,-699.163556,0.00024658,2]
[401074243,1767905443061,-151.0,0.00024658,2]
[401074245,1767905443070,-172.705914,0.00024658,2]
[401074247,1767905443079,-262.112916,0.00024658,2]
[401074249,1767905443089,-172.705914,0.00024658,2]
[401074251,1767905443102,-172.705914,0.00024658,2]
[401074253,1767905443112,-172.705914,0.00024658,2]
[401074255,1767905443121,-388.092813,0.00024658,2]
[401074257,1767905443131,-388.092813,0.00024658,2]
[401074259,1767905443142,-388.092813,0.00024658,2]
[401074261,1767905443154,-388.092813,0.00024658,2]
[401074263,1767905443163,-298.474692,0.00024658,2]
[401074265,1767905443173,-151.0,0.00024658,2]
[401074267,1767905443182,-151.0,0.00024658,2]
[401074269,1767905443191,-184.679172,0.00024658,2]
[401074271,1767905443200,-151.0,0.00024658,2]
[401074273,1767905443209,-151.0,0.00024658,2]
[401074275,1767905443218,-151.0,0.00024658,2]
[401074277,1767905443227,-289.370538,0.00024658,2]
[401074279,1767905443235,-289.370538,0.00024658,2]
[401074281,1767905443244,-289.370538,0.00024658,2]
[401074283,1767905443253,-289.370538,0.00024658,2]
[401074285,1767905443263,-151.0,0.00024658,2]
[401074287,1767905443272,-151.0,0.00024658,2]
[401074289,1767905443281,-151.0,0.00024658,2]
[401074291,1767905443291,-151.0,0.00024658,2]
[401074293,1767905443299,-151.0,0.00024658,2]
[401074295,1767905443309,-204.572095,0.00024658,2]
[401074297,1767905443318,-151.0,0.00024658,2]
[401074299,1767905443327,-204.572095,0.00024658,2]
[401074301,1767905443336,-204.572095,0.00024658,2]
[401074303,1767905443345,-204.572095,0.00024658,2]
[401074304,1767905443353,-151.0,0.00024658,2]
[401074306,1767905443363,-151.0,0.00024658,2]
[401074309,1767905443372,-151.0,0.00024658,2]
[401074311,1767905443381,-151.0,0.00024658,2]
[401074313,1767905443391,-622.20825,0.00024658,2]
[401074314,1767905443400,-622.20825,0.00024658,2]
[401074317,1767905443409,-622.20825,0.00024658,2]
[401074319,1767905443419,-622.20825,0.00024658,2]
[401074321,1767905443428,-151.0,0.00024658,2]
[401074323,1767905443438,-151.0,0.00024658,2]
[401074325,1767905443447,-303.930909,0.00024658,2]
[401074327,1767905443457,-153.151954,0.00024658,2]
[401074329,1767905443467,-303.930909,0.00024658,2]
[401074330,1767905443475,-303.930909,0.00024658,2]
[401074332,1767905443485,-168.916695,0.00024658,2]
[401074335,1767905443494,-303.930909,0.00024658,2]
[401074337,1767905443503,-248.949077,0.00024658,2]
[401074339,1767905443513,-248.949077,0.00024658,2]
[401074341,1767905443522,-248.949077,0.00024658,2]
[401074343,1767905443531,-151.0,0.00024658,2]
[401074345,1767905443541,-248.949077,0.00024658,2]
[401074347,1767905443550,-209.694433,0.00024658,2]
[401074349,1767905443559,-151.0,0.00024658,2]
[401074351,1767905443568,-151.0,0.00024658,2]
[401074353,1767905443577,-151.0,0.00024658,2]
[401074354,1767905443586,-151.0,0.00024658,2]
[401074357,1767905443596,-151.0,0.00024658,2]
[401074358,1767905443605,-2391.210697,0.00024658,2]
[401074359,1767905443615,-2391.210697,0.00024658,2]
[401074360,1767905443624,-2391.210697,0.00024658,2]
[401074361,1767905443634,-2391.210697,0.00024658,2]
[401074362,1767905443644,-151.0,0.00024658,2]
[401074363,1767905443653,-191.094302,0.00024658,2]
[401074364,1767905443662,-151.0,0.00024658,2]
[401074365,1767905443671,-191.094302,0.00024658,2]
[401074366,1767905443680,-151.0,0.00024658,2]
[401074367,1767905443689,-151.0,0.00024658,2]
[401074368,1767905443700,-191.094302,0.00024658,2]
[401074369,1767905443709,-191.094302,0.00024658,2]
[401074370,1767905443719,-182.749737,0.00024658,2]
[401074371,1767905443728,-151.0,0.00024658,2]
[401074372,1767905443737,-182.749737,0.00024658,2]
[401074373,1767905443747,-151.0,0.00024658,2]
[401074374,1767905443756,-182.749737,0.00024658,2]
[401074375,1767905443766,-182.749737,0.00024658,2]
[401074376,1767905443776,-151.0,0.00024658,2]
[401074377,1767905443785,-151.0,0.00024658,2]
[401074378,1767905443795,-151.0,0.00024658,2]
[401074379,1767905443805,-151.0,0.00024658,2]
[401074380,1767905443815,-151.0,0.00024658,2]
[401074381,1767905443824,-151.0,0.00024658,2]
[401074382,1767905443834,-179.188398,0.00024658,2]
[401074384,1767905443843,-1439.873322,0.00024658,2]
[401074385,1767905443852,-151.0,0.00024658,2]
[401074387,1767905443862,-1439.873322,0.00024658,2]
[401074389,1767905443871,-1439.873322,0.00024658,2]
[401074392,1767905443880,-151.58214,0.00024658,2]
[401074393,1767905443890,-1439.873322,0.00024658,2]
[401074395,1767905443899,-151.0,0.00024658,2]
[401074397,1767905443908,-575.66,0.000247,7]
[401074399,1767905443917,-1005.37,0.000247,14]
[401074401,1767905443927,-2371.56730237,0.00024741,2]
[401074403,1767905443936,-151.0,0.000248,7]
[401074405,1767905443945,-151.0,0.000248,7]
[401074407,1767905443954,-151.0,0.000248,7]
[401074409,1767905443963,-151.0,0.000248,7]
[401074411,1767905443972,-151.0,0.000248,7]
[401074413,1767905443981,-151.0,0.000248,7]
[401074415,1767905443990,-284.584796,0.000248,7]
[401074417,1767905443999,-151.0,0.000248,7]
[401074419,1767905444008,-151.0,0.000248,7]
[401074421,1767905444018,-151.0,0.000248,7]
[401074423,1767905444027,-151.0,0.000248,7]
[401074425,1767905444036,-151.0,0.000248,7]
[401074427,1767905444046,-153.716458,0.000248,7]
[401074429,1767905444055,-465.027669,0.000248,7]
[401074431,1767905444063,-465.027669,0.000248,7]
[401074433,1767905444072,-465.027669,0.000248,7]
[401074435,1767905444082,-465.027669,0.000248,7]
[401074437,1767905444091,-210.013186,0.000248,7]
[401074439,1767905444104,-151.0,0.000248,7]
[401074441,1767905444113,-151.0,0.000248,7]
[401074443,1767905444122,-625.10994,0.000248,7]
[401074445,1767905444132,-625.10994,0.000248,7]
[401074447,1767905444142,-625.10994,0.000248,7]
[401074449,1767905444151,-625.10994,0.000248,7]
[401074451,1767905444160,-151.0,0.000248,7]
[401074453,1767905444170,-151.0,0.000248,7]
[401074455,1767905444179,-151.0,0.000248,7]
[401074457,1767905444189,-151.0,0.000248,7]
[401074459,1767905444198,-151.0,0.000248,7]
[401074461,1767905444207,-189.075092,0.000248,7]
[401074463,1767905444216,-189.075092,0.000248,7]
[401074465,1767905444224,-189.075092,0.000248,7]
[401074467,1767905444233,-151.0,0.000248,7]
[401074469,1767905444242,-189.075092,0.000248,7]
[401074471,1767905444251,-151.0,0.000248,7]
[401074473,1767905444260,-151.0,0.000248,7]
[401074474,1767905444269,-151.0,0.000248,7]
[401074476,1767905444279,-151.0,0.000248,7]
[401074478,1767905444288,-151.0,0.000248,7]
[401074480,1767905444298,-699.163556,0.000248,7]
[401074482,1767905444307,-699.163556,0.000248,7]
[401074484,1767905444316,-699.163556,0.000248,7]
[401074486,1767905444325,-699.163556,0.000248,7]
[401074488,1767905444334,-151.0,0.000248,7]
[401074491,1767905444344,-172.705914,0.000248,7]
[401074493,1767905444353,-172.705914,0.000248,7]
[401074494,1767905444362,-172.705914,0.000248,7]
[401074496,1767905444371,-172.705914,0.000248,7]
[401074498,1767905444381,-388.092813,0.000248,7]
[401074500,1767905444390,-388.092813,0.000248,7]
[401074502,1767905444400,-388.092813,0.000248,7]
[401074504,1767905444409,-388.092813,0.000248,7]
[401074506,1767905444419,-151.0,0.000248,7]
[401074508,1767905444427,-151.0,0.000248,7]
[401074510,1767905444436,-151.0,0.000248,7]
[401074512,1767905444446,-152.763427,0.000248,7]
[401074514,1767905444455,-289.370538,0.000248,7]
[401074516,1767905444464,-289.370538,0.000248,7]
[401074518,1767905444473,-289.370538,0.000248,7]
[401074520,1767905444482,-289.370538,0.000248,7]
[401074522,1767905444491,-522.121584,0.000248,7]
[401074524,1767905444500,-522.121584,0.000248,7]
[401074526,1767905444509,-151.0,0.000248,7]
[401074528,1767905444519,-522.121584,0.000248,7]
[401074530,1767905444528,-522.121584,0.000248,7]
[401074532,1767905444537,-151.0,0.000248,7]
[401074534,1767905444549,-151.0,0.000248,7]
[401074536,1767905444557,-151.0,0.000248,7]
[401074538,1767905444567,-151.0,0.000248,7]
[401074540,1767905444576,-204.572095,0.000248,7]
[401074542,1767905444585,-151.0,0.000248,7]
[401074544,1767905444594,-204.572095,0.000248,7]
[401074546,1767905444603,-204.572095,0.000248,7]
[401074548,1767905444612,-204.572095,0.000248,7]
[401074550,1767905444621,-151.0,0.000248,7]
[401074552,1767905444630,-151.0,0.000248,7]
[401074554,1767905444639,-151.0,0.000248,7]
[401074556,1767905444649,-151.0,0.000248,7]
[401074558,1767905444659,-622.20825,0.000248,7]
[401074560,1767905444668,-622.20825,0.000248,7]
[401074562,1767905444677,-622.20825,0.000248,7]
[401074564,1767905444686,-622.20825,0.000248,7]
[401074566,1767905444695,-238.415405,0.000248,7]
[401074568,1767905444705,-151.0,0.000248,7]
[401074570,1767905444714,-1222.595979,0.000248,7]
[401074572,1767905444724,-303.930909,0.000248,7]
[401074574,1767905444734,-1222.595979,0.000248,7]
[401074576,1767905444743,-303.930909,0.000248,7]
[401074579,1767905444752,-1222.595979,0.000248,7]
[401074580,1767905444761,-303.930909,0.000248,7]
[401074582,1767905444771,-1222.595979,0.000248,7]
[401074584,1767905444780,-303.930909,0.000248,7]
[401074586,1767905444789,-151.0,0.000248,7]
[401074589,1767905444799,-248.949077,0.000248,7]
[401074590,1767905444808,-248.949077,0.000248,7]
[401074592,1767905444818,-248.949077,0.000248,7]
[401074594,1767905444827,-151.0,0.000248,2]
[401074596,1767905444836,-248.949077,0.000248,7]
[401074598,1767905444845,-151.0,0.000248,7]
[401074600,1767905444854,-151.858704,0.000248,7]
[401074602,1767905444863,-151.0,0.000248,7]
[401074604,1767905444873,-151.0,0.000248,7]
[401074606,1767905444882,-212.874628,0.000248,7]
[401074608,1767905444891,-2391.210697,0.000248,7]
[401074610,1767905444900,-2391.210697,0.000248,7]
[401074612,1767905444910,-2391.210697,0.000248,7]
[401074614,1767905444920,-2391.210697,0.000248,7]
[401074616,1767905444929,-151.0,0.000248,7]
[401074618,1767905444938,-191.094302,0.000248,7]
[401074620,1767905444947,-151.0,0.000248,7]
[401074622,1767905444957,-191.094302,0.000248,7]
[401074624,1767905444965,-151.0,0.000248,7]
[401074626,1767905444974,-178.75645,0.000248,7]
[401074628,1767905444984,-191.094302,0.000248,7]
[401074630,1767905444993,-191.094302,0.000248,7]
[401074632,1767905445003,-182.749737,0.000248,7]
[401074634,1767905445012,-341.324064,0.000248,7]
[401074636,1767905445021,-341.324064,0.000248,7]
[401074638,1767905445030,-341.324064,0.000248,7]
[401074640,1767905445039,-182.749737,0.000248,7]
[401074642,1767905445048,-341.324064,0.000248,7]
[401074644,1767905445058,-151.0,0.000248,7]
[401074646,1767905445067,-182.749737,0.000248,7]
[401074648,1767905445075,-182.749737,0.000248,7]
[401074650,1767905445085,-151.0,0.000248,7]
[401074652,1767905445095,-228.045363,0.000248,7]
[401074654,1767905445106,-419.6,0.00024866,2]
[401074656,1767905445115,-1041.66666667,0.000249,7]
[401074658,1767905445124,-151.0,0.000249,7]
[401074660,1767905445133,-190.583108,0.000249,7]
[401074662,1767905445143,-151.0,0.000249,7]
[401074664,1767905445152,-151.0,0.000249,7]
[401074666,1767905445161,-151.0,0.000249,7]
[401074668,1767905445171,-152.051133,0.000249,7]
[401074670,1767905445180,-151.0,0.000249,7]
[401074671,1767905445189,-151.0,0.000249,7]
[401074674,1767905445199,-151.0,0.000249,7]
[401074676,1767905445208,-151.0,0.000249,7]
[401074678,1767905445217,-151.0,0.000249,7]
[401074679,1767905445226,-232.721507,0.000249,7]
[401074681,1767905445235,-153.349181,0.000249,7]
[401074687,1767905445274,-151.0,0.000249,7]
[401074689,1767905445283,-151.0,0.000249,7]
[401074691,1767905445292,-151.0,0.000249,7]
[401074692,1767905445300,-176.797515,0.000249,7]
[401074694,1767905445309,-151.0,0.000249,7]
[401074696,1767905445318,-151.0,0.000249,7]
[401074698,1767905445327,-151.0,0.000249,7]
[401074700,1767905445336,-151.0,0.000249,7]
[401074702,1767905445346,-195.610594,0.000249,7]
[401074704,1767905445355,-195.610594,0.000249,7]
[401074706,1767905445365,-151.0,0.000249,7]
[401074708,1767905445374,-195.610594,0.000249,7]
[401074710,1767905445383,-151.0,0.000249,7]
[401074712,1767905445393,-195.610594,0.000249,7]
[401074714,1767905445403,-288.938246,0.000249,7]
[401074716,1767905445413,-412.85,0.000249,7]
[401074718,1767905445423,-412.85,0.000249,7]
[401074720,1767905445433,-151.0,0.000249,7]
[401074722,1767905445442,-412.85,0.000249,7]
[401074724,1767905445451,-412.85,0.000249,7]
[401074726,1767905445460,-151.0,0.000249,7]
[401074728,1767905445468,-151.0,0.000249,7]
[401074730,1767905445478,-177.622623,0.000249,7]
[401074732,1767905445487,-151.0,0.000249,7]
[401074734,1767905445495,-151.0,0.000249,7]
[401074736,1767905445505,-151.0,0.000249,7]
[401074738,1767905445514,-151.0,0.000249,7]
[401074740,1767905445524,-465.027669,0.000249,7]
[401074742,1767905445533,-465.027669,0.000249,7]
[401074744,1767905445542,-465.027669,0.000249,7]
[401074746,1767905445552,-465.027669,0.000249,7]
[401074748,1767905445560,-151.0,0.000249,7]
[401074750,1767905445569,-625.10994,0.000249,7]
[401074752,1767905445578,-625.10994,0.000249,7]
[401074754,1767905445587,-625.10994,0.000249,7]
[401074756,1767905445596,-625.10994,0.000249,7]
[401074758,1767905445605,-151.0,0.000249,7]
[401074760,1767905445613,-151.0,0.000249,7]
[401074762,1767905445622,-151.0,0.000249,7]
[401074764,1767905445631,-153.670085,0.000249,7]
[401074765,1767905445640,-151.0,0.000249,7]
[401074767,1767905445649,-212.81488,0.000249,7]
[401074769,1767905445657,-151.0,0.000249,7]
[401074771,1767905445666,-151.0,0.000249,7]
[401074773,1767905445675,-151.0,0.000249,7]
[401074775,1767905445685,-151.0,0.000249,7]
[401074777,1767905445694,-151.0,0.000249,7]
[401074779,1767905445703,-189.075092,0.000249,7]
[401074781,1767905445712,-189.075092,0.000249,7]
[401074783,1767905445721,-189.075092,0.000249,7]
[401074785,1767905445730,-151.0,0.000249,7]
[401074787,1767905445739,-189.075092,0.000249,7]
[401074789,1767905445748,-151.0,0.000249,7]
[401074791,1767905445757,-204.768677,0.000249,7]
[401074793,1767905445766,-151.0,0.000249,7]
[401074795,1767905445776,-151.0,0.000249,7]
[401074797,1767905445785,-151.0,0.000249,7]
[401074799,1767905445794,-699.163556,0.000249,7]
[401074801,1767905445804,-699.163556,0.000249,7]
[401074803,1767905445813,-699.163556,0.000249,7]
[401074805,1767905445822,-699.163556,0.000249,7]
[401074807,1767905445831,-169.22404,0.000249,7]
[401074809,1767905445842,-172.705914,0.000249,7]
[401074812,1767905445851,-172.705914,0.000249,7]
[401074814,1767905445860,-172.705914,0.000249,7]
[401074816,1767905445869,-172.705914,0.000249,7]
[401074818,1767905445878,-388.092813,0.000249,7]
[401074820,1767905445888,-388.092813,0.000249,7]
[401074822,1767905445897,-388.092813,0.000249,7]
[401074824,1767905445905,-388.092813,0.000249,7]
[401074826,1767905445915,-151.0,0.000249,7]
[401074828,1767905445924,-151.0,0.000249,7]
[401074830,1767905445932,-151.0,0.000249,7]
[401074832,1767905445942,-289.370538,0.000249,7]
[401074834,1767905445951,-289.370538,0.000249,7]